Department family,Entity,Date,Expense type,Expense area,Supplier,Transaction number,Amount,Description
Ministry of Justice,HMPPS,5/5/2017,5215102051 - EXP - PURCHASE OF GOODS/SERVICES - ACCOMMODATION & BLDNG MANAGEMENT - Ad-Hoc Major Maintenance and New Work - more than 10k,10208080-Estates Contract Management,AMEY COMMUNITY LIMITED,90600168,110958.64, Maintenance  Work 
Ministry of Justice,HMPPS,5/10/2017,5224102192 - EXP - PURCHASE OF GOODS/SERVICES - OTHER  - Resettlement,10205430-Public Protection North East,CARDIGAN HOUSE APPROVED PREMISE,633,53920.33,Contracted-out Resettlement Services
Ministry of Justice,HMPPS,5/10/2017,5224102192 - EXP - PURCHASE OF GOODS/SERVICES - OTHER  - Resettlement,10205430-Public Protection North East,CARDIGAN HOUSE APPROVED PREMISE,634,53920.33,Contracted-out Resettlement Services
Ministry of Justice,HMPPS,5/10/2017,5224102192 - EXP - PURCHASE OF GOODS/SERVICES - OTHER  - Resettlement,10205430-Public Protection North East,CARDIGAN HOUSE APPROVED PREMISE,640,54459.5,Contracted-out Resettlement Services
Ministry of Justice,HMPPS,5/10/2017,5224102192 - EXP - PURCHASE OF GOODS/SERVICES - OTHER  - Resettlement,10205430-Public Protection North East,CARDIGAN HOUSE APPROVED PREMISE,639,54459.5,Contracted-out Resettlement Services
Ministry of Justice,HMPPS,5/11/2017,5224102050 - EXP - PURCHASE OF GOODS/SERVICES - OTHER - Contracted out operation of prisons,10201330-Thameside,BWP PROJECT SERVICES LTD,90039213,3572989.7,Contracted-out operation of prisons and detention centres
Ministry of Justice,HMPPS,5/11/2017,5224102025 - EXP - PURCHASE OF GOODS/SERVICES - OTHER - Prison Shop Cost of Sales,10207060-Retail Project Charges,DHL SUPPLY CHAIN LTD,11172699,251365.66,Prison shop run through a national contract at no cost to taxpayer�
Ministry of Justice,HMPPS,5/11/2017,5224102025 - EXP - PURCHASE OF GOODS/SERVICES - OTHER - Prison Shop Cost of Sales,10207060-Retail Project Charges,DHL SUPPLY CHAIN LTD,11172699,520154.33,Prison shop run through a national contract at no cost to taxpayer�
Ministry of Justice,HMPPS,5/12/2017,5224100011 - EXP - PURCHASE OF GOODS/SERVICES - PURCHASE PRICE VARIANCE,10200420-Hewell,BIBBY FACTORING SLOUGH LTD,12000A,106481.68,Agency staff costs
Ministry of Justice,HMPPS,5/12/2017,5224100011 - EXP - PURCHASE OF GOODS/SERVICES - PURCHASE PRICE VARIANCE,10200420-Hewell,BIBBY FACTORING SLOUGH LTD,12000A,127778.02,Agency staff costs
Ministry of Justice,HMPPS,5/12/2017,5224100011 - EXP - PURCHASE OF GOODS/SERVICES - PURCHASE PRICE VARIANCE,10207990-Central Budgets,CAPITA BUSINESS SERVICES LTD,LO10195215,138707.45,Specialist contractors engaged under a fixed-term contract for services 
Ministry of Justice,HMPPS,5/16/2017,5224102050 - EXP - PURCHASE OF GOODS/SERVICES - OTHER - Contracted out operation of prisons,10201330-Thameside,BWP PROJECT SERVICES LTD,90039459,37992.04,Contracted-out operation of prisons and detention centres
Ministry of Justice,HMPPS,5/16/2017,5224100011 - EXP - PURCHASE OF GOODS/SERVICES - PURCHASE PRICE VARIANCE,10207470-Learning and Development Group,CALDER CONFERENCES LTD,231359,30240,Subsistence and hotel accommodation for staff working away from their home area 
Ministry of Justice,HMPPS,5/16/2017,5224100011 - EXP - PURCHASE OF GOODS/SERVICES - PURCHASE PRICE VARIANCE,10207470-Learning and Development Group,CALDER CONFERENCES LTD,231357,34248,Subsistence and hotel accommodation for staff working away from their home area 
Ministry of Justice,HMPPS,5/16/2017,5224100011 - EXP - PURCHASE OF GOODS/SERVICES - PURCHASE PRICE VARIANCE,10207470-Learning and Development Group,CALDER CONFERENCES LTD,231356,36952,Subsistence and hotel accommodation for staff working away from their home area 
Ministry of Justice,HMPPS,5/17/2017,5215102038 - EXP - PURCHASE OF GOODS/SERVICES - ACCOMMODATION & BLDNG MANAGEMENT - FM - Soft Fixed Costs,10208080-Estates Contract Management,AMEY COMMUNITY LIMITED,90602125,28000, Maintenance  Work 
Ministry of Justice,HMPPS,5/17/2017,5215102038 - EXP - PURCHASE OF GOODS/SERVICES - ACCOMMODATION & BLDNG MANAGEMENT - FM - Soft Fixed Costs,10208080-Estates Contract Management,AMEY COMMUNITY LIMITED,90602128,28000, Maintenance  Work 
Ministry of Justice,HMPPS,5/17/2017,5215102036 - EXP - PURCHASE OF GOODS/SERVICES - ACCOMMODATION & BLDNG MANAGEMENT - FM - Hard Fixed Costs,10208080-Estates Contract Management,AMEY COMMUNITY LIMITED,90602125,96584.1, Maintenance  Work 
Ministry of Justice,HMPPS,5/17/2017,5215102036 - EXP - PURCHASE OF GOODS/SERVICES - ACCOMMODATION & BLDNG MANAGEMENT - FM - Hard Fixed Costs,10208080-Estates Contract Management,AMEY COMMUNITY LIMITED,90602128,96584.1, Maintenance  Work 
Ministry of Justice,HMPPS,5/17/2017,5215102036 - EXP - PURCHASE OF GOODS/SERVICES - ACCOMMODATION & BLDNG MANAGEMENT - FM - Hard Fixed Costs,10208080-Estates Contract Management,AMEY COMMUNITY LIMITED,90602125,160999.99, Maintenance  Work 
Ministry of Justice,HMPPS,5/17/2017,5215102036 - EXP - PURCHASE OF GOODS/SERVICES - ACCOMMODATION & BLDNG MANAGEMENT - FM - Hard Fixed Costs,10208080-Estates Contract Management,AMEY COMMUNITY LIMITED,90602128,160999.99, Maintenance  Work 
Ministry of Justice,HMPPS,5/17/2017,5215102038 - EXP - PURCHASE OF GOODS/SERVICES - ACCOMMODATION & BLDNG MANAGEMENT - FM - Soft Fixed Costs,10208080-Estates Contract Management,AMEY COMMUNITY LIMITED,90602125,372050.4, Maintenance  Work 
Ministry of Justice,HMPPS,5/17/2017,5215102038 - EXP - PURCHASE OF GOODS/SERVICES - ACCOMMODATION & BLDNG MANAGEMENT - FM - Soft Fixed Costs,10208080-Estates Contract Management,AMEY COMMUNITY LIMITED,90602128,372050.4, Maintenance  Work 
Ministry of Justice,HMPPS,5/17/2017,5224102050 - EXP - PURCHASE OF GOODS/SERVICES - OTHER - Contracted out operation of prisons,10201280-Parc,BRIDGEND CUSTODIAL SERVICES LTD,BE17025,5495341.87,Contracted-out operation of prisons and detention centres
Ministry of Justice,HMPPS,5/17/2017,1151200000 - PPE - PLANT & MACHINERY (OWNED) - COST - ADDITIONS,10208080-Estates Contract Management,CARILLION (AMBS) LIMITED,EE22-201703,25749.74,Maintenance work
Ministry of Justice,HMPPS,5/17/2017,5215102051 - EXP - PURCHASE OF GOODS/SERVICES - ACCOMMODATION & BLDNG MANAGEMENT - Ad-Hoc Major Maintenance and New Work - more than 10k,10208080-Estates Contract Management,CARILLION (AMBS) LIMITED,SW5-201703,28444.07,Maintenance work
Ministry of Justice,HMPPS,5/17/2017,5215102051 - EXP - PURCHASE OF GOODS/SERVICES - ACCOMMODATION & BLDNG MANAGEMENT - Ad-Hoc Major Maintenance and New Work - more than 10k,10208080-Estates Contract Management,CARILLION (AMBS) LIMITED,EE2-201703,31793.41,Maintenance work
Ministry of Justice,HMPPS,5/17/2017,5215102051 - EXP - PURCHASE OF GOODS/SERVICES - ACCOMMODATION & BLDNG MANAGEMENT - Ad-Hoc Major Maintenance and New Work - more than 10k,10208080-Estates Contract Management,CARILLION (AMBS) LIMITED,EE20-201703,33563.71,Maintenance work
Ministry of Justice,HMPPS,5/17/2017,5215102051 - EXP - PURCHASE OF GOODS/SERVICES - ACCOMMODATION & BLDNG MANAGEMENT - Ad-Hoc Major Maintenance and New Work - more than 10k,10208080-Estates Contract Management,CARILLION (AMBS) LIMITED,SW4-201703,34207,Maintenance work
Ministry of Justice,HMPPS,5/17/2017,5215102047 - EXP - PURCHASE OF GOODS/SERVICES - ACCOMMODATION & BLDNG MANAGEMENT - FM - Buildings related Emergency Action - more than 5k,10208080-Estates Contract Management,CARILLION (AMBS) LIMITED,SC6-201703,35212.54,Maintenance work
Ministry of Justice,HMPPS,5/17/2017,5215102047 - EXP - PURCHASE OF GOODS/SERVICES - ACCOMMODATION & BLDNG MANAGEMENT - FM - Buildings related Emergency Action - more than 5k,10208080-Estates Contract Management,CARILLION (AMBS) LIMITED,GL6-201703,35388.74,Maintenance work
Ministry of Justice,HMPPS,5/17/2017,5215102051 - EXP - PURCHASE OF GOODS/SERVICES - ACCOMMODATION & BLDNG MANAGEMENT - Ad-Hoc Major Maintenance and New Work - more than 10k,10208080-Estates Contract Management,CARILLION (AMBS) LIMITED,EE24-201703,36000,Maintenance work
Ministry of Justice,HMPPS,5/17/2017,5215102051 - EXP - PURCHASE OF GOODS/SERVICES - ACCOMMODATION & BLDNG MANAGEMENT - Ad-Hoc Major Maintenance and New Work - more than 10k,10208080-Estates Contract Management,CARILLION (AMBS) LIMITED,SW10-201703,40315.63,Maintenance work
Ministry of Justice,HMPPS,5/17/2017,5215102051 - EXP - PURCHASE OF GOODS/SERVICES - ACCOMMODATION & BLDNG MANAGEMENT - Ad-Hoc Major Maintenance and New Work - more than 10k,10208080-Estates Contract Management,CARILLION (AMBS) LIMITED,KS18-201703,40623.12,Maintenance work
Ministry of Justice,HMPPS,5/17/2017,5215102051 - EXP - PURCHASE OF GOODS/SERVICES - ACCOMMODATION & BLDNG MANAGEMENT - Ad-Hoc Major Maintenance and New Work - more than 10k,10208080-Estates Contract Management,CARILLION (AMBS) LIMITED,EE6-201703,41549.72,Maintenance work
Ministry of Justice,HMPPS,5/17/2017,5215102051 - EXP - PURCHASE OF GOODS/SERVICES - ACCOMMODATION & BLDNG MANAGEMENT - Ad-Hoc Major Maintenance and New Work - more than 10k,10208080-Estates Contract Management,CARILLION (AMBS) LIMITED,SW16-201703,41970.78,Maintenance work
Ministry of Justice,HMPPS,5/17/2017,1121200000 - PPE - BUILDINGS (OWNED) - COST - ADDITIONS,10208080-Estates Contract Management,CARILLION (AMBS) LIMITED,EE16-201703,42931.33,Maintenance work
Ministry of Justice,HMPPS,5/17/2017,5215102051 - EXP - PURCHASE OF GOODS/SERVICES - ACCOMMODATION & BLDNG MANAGEMENT - Ad-Hoc Major Maintenance and New Work - more than 10k,10208080-Estates Contract Management,CARILLION (AMBS) LIMITED,GL26-201703,43218.06,Maintenance work
Ministry of Justice,HMPPS,5/17/2017,5215102051 - EXP - PURCHASE OF GOODS/SERVICES - ACCOMMODATION & BLDNG MANAGEMENT - Ad-Hoc Major Maintenance and New Work - more than 10k,10208080-Estates Contract Management,CARILLION (AMBS) LIMITED,SW7-201703,43221.38,Maintenance work
Ministry of Justice,HMPPS,5/17/2017,1121200000 - PPE - BUILDINGS (OWNED) - COST - ADDITIONS,10208080-Estates Contract Management,CARILLION (AMBS) LIMITED,SC10-201703,48197.04,Maintenance work
Ministry of Justice,HMPPS,5/17/2017,5215102051 - EXP - PURCHASE OF GOODS/SERVICES - ACCOMMODATION & BLDNG MANAGEMENT - Ad-Hoc Major Maintenance and New Work - more than 10k,10208080-Estates Contract Management,CARILLION (AMBS) LIMITED,SW11-201703,57161.52,Maintenance work
Ministry of Justice,HMPPS,5/17/2017,5215102051 - EXP - PURCHASE OF GOODS/SERVICES - ACCOMMODATION & BLDNG MANAGEMENT - Ad-Hoc Major Maintenance and New Work - more than 10k,10208080-Estates Contract Management,CARILLION (AMBS) LIMITED,SW14-201703,58062.66,Maintenance work
Ministry of Justice,HMPPS,5/17/2017,5215102051 - EXP - PURCHASE OF GOODS/SERVICES - ACCOMMODATION & BLDNG MANAGEMENT - Ad-Hoc Major Maintenance and New Work - more than 10k,10208080-Estates Contract Management,CARILLION (AMBS) LIMITED,SW14-201703,69699.19,Maintenance work
Ministry of Justice,HMPPS,5/17/2017,5215102051 - EXP - PURCHASE OF GOODS/SERVICES - ACCOMMODATION & BLDNG MANAGEMENT - Ad-Hoc Major Maintenance and New Work - more than 10k,10208080-Estates Contract Management,CARILLION (AMBS) LIMITED,SC11-201703,75578.74,Maintenance work
Ministry of Justice,HMPPS,5/17/2017,1151200000 - PPE - PLANT & MACHINERY (OWNED) - COST - ADDITIONS,10208080-Estates Contract Management,CARILLION (AMBS) LIMITED,SW13-201703,78321.17,Maintenance work
Ministry of Justice,HMPPS,5/17/2017,5215102051 - EXP - PURCHASE OF GOODS/SERVICES - ACCOMMODATION & BLDNG MANAGEMENT - Ad-Hoc Major Maintenance and New Work - more than 10k,10208080-Estates Contract Management,CARILLION (AMBS) LIMITED,EE1-201703,87565.69,Maintenance work
Ministry of Justice,HMPPS,5/17/2017,5215102051 - EXP - PURCHASE OF GOODS/SERVICES - ACCOMMODATION & BLDNG MANAGEMENT - Ad-Hoc Major Maintenance and New Work - more than 10k,10208080-Estates Contract Management,CARILLION (AMBS) LIMITED,GL23-201703,90590.21,Maintenance work
Ministry of Justice,HMPPS,5/17/2017,5215102051 - EXP - PURCHASE OF GOODS/SERVICES - ACCOMMODATION & BLDNG MANAGEMENT - Ad-Hoc Major Maintenance and New Work - more than 10k,10208080-Estates Contract Management,CARILLION (AMBS) LIMITED,EE23-201703,96022.63,Maintenance work
Ministry of Justice,HMPPS,5/17/2017,5215102051 - EXP - PURCHASE OF GOODS/SERVICES - ACCOMMODATION & BLDNG MANAGEMENT - Ad-Hoc Major Maintenance and New Work - more than 10k,10208080-Estates Contract Management,CARILLION (AMBS) LIMITED,SW12-201703,114788.88,Maintenance work
Ministry of Justice,HMPPS,5/17/2017,1121200000 - PPE - BUILDINGS (OWNED) - COST - ADDITIONS,10208080-Estates Contract Management,CARILLION (AMBS) LIMITED,EE12-201703,120500.4,Maintenance work
Ministry of Justice,HMPPS,5/17/2017,5215102047 - EXP - PURCHASE OF GOODS/SERVICES - ACCOMMODATION & BLDNG MANAGEMENT - FM - Buildings related Emergency Action - more than 5k,10208080-Estates Contract Management,CARILLION (AMBS) LIMITED,EE8-201703,127800,Maintenance work
Ministry of Justice,HMPPS,5/17/2017,5215102051 - EXP - PURCHASE OF GOODS/SERVICES - ACCOMMODATION & BLDNG MANAGEMENT - Ad-Hoc Major Maintenance and New Work - more than 10k,10208080-Estates Contract Management,CARILLION (AMBS) LIMITED,SW17-201703,168026.68,Maintenance work
Ministry of Justice,HMPPS,5/17/2017,5212102005 - EXP - PURCHASE OF GOODS/SERVICES - PERSONNEL RELATED - Recruitment costs,10207411-Organisational Development Group Admin,CATCH 22 CHARITY LTD,55584,103284.04,Recruitment
Ministry of Justice,HMPPS,5/17/2017,5224102192 - EXP - PURCHASE OF GOODS/SERVICES - OTHER  - Resettlement,10207320-NOMS CFO Round 3,ADVANCED PERSONNEL MANAGEMENT GROUP UK LIMITED,GBR11586,36726,Training and Further Education Courses
Ministry of Justice,HMPPS,5/17/2017,5224102192 - EXP - PURCHASE OF GOODS/SERVICES - OTHER  - Resettlement,10207320-NOMS CFO Round 3,ADVANCED PERSONNEL MANAGEMENT GROUP UK LIMITED,GBR11584,112902,Training and Further Education Courses
Ministry of Justice,HMPPS,5/18/2017,5224102025 - EXP - PURCHASE OF GOODS/SERVICES - OTHER - Prison Shop Cost of Sales,10207060-Retail Project Charges,DHL SUPPLY CHAIN LTD,11174204,249228.81,Prison shop run through a national contract at no cost to taxpayer�
Ministry of Justice,HMPPS,5/18/2017,5224102025 - EXP - PURCHASE OF GOODS/SERVICES - OTHER - Prison Shop Cost of Sales,10207060-Retail Project Charges,DHL SUPPLY CHAIN LTD,11174204,520882.26,Prison shop run through a national contract at no cost to taxpayer�
Ministry of Justice,HMPPS,5/19/2017,5218102012 - EXP - PURCHASE OF GOODS/SERVICES - ICT OUTSOURCING & MAINT./SUPPORT - Other,10209010-Application Support Team,BEAUMONT COLSON,NOMS/ND005/17,411264,Contracted-out Computer Services
Ministry of Justice,HMPPS,5/19/2017,5224102187 - EXP - PURCHASE OF GOODS/SERVICES - OTHER  - Prison Shop,10207060-Retail Project Charges,DHL SUPPLY CHAIN LTD,11174865,165630.59,Prison shop run through a national contract at no cost to taxpayer�
Ministry of Justice,HMPPS,5/19/2017,5211300000 - EXP - PURCHASE OF GOODS/SERVICES - TRAINING & DEVELOPMENT,10207590-Commissioning Group,BIRMINGHAM CITY UNIVERSITY,IC005389,26600,Training and Further Education Courses
Ministry of Justice,HMPPS,5/19/2017,5211300000 - EXP - PURCHASE OF GOODS/SERVICES - TRAINING & DEVELOPMENT,10207590-Commissioning Group,BIRMINGHAM CITY UNIVERSITY,IC005389,26600,Training and Further Education Courses
Ministry of Justice,HMPPS,5/22/2017,5215102008 - EXP - PURCHASE OF GOODS/SERVICES - ACCOMMODATION & BLDNG MANAGEMENT - Mechanical & Electrical Repair and Maintenance,10207730-Contract Management Services,CAPITA SECURE INFORMATION SOLUTIONS LTD,6060023084,221398.44,Contracted-out Computer Services
Ministry of Justice,HMPPS,5/22/2017,5218102012 - EXP - PURCHASE OF GOODS/SERVICES - ICT OUTSOURCING & MAINT./SUPPORT - Other,10207750-Fix 'n' Go,DELOITTE MCS LIMITED,2410118298,1474908,Contracted-out Computer Services
Ministry of Justice,HMPPS,5/22/2017,5224102050 - EXP - PURCHASE OF GOODS/SERVICES - OTHER - Contracted out operation of prisons,10201280-Parc,BRIDGEND CUSTODIAL SERVICES LTD,BE17026,25371.22,Contracted-out operation of prisons and detention centres
Ministry of Justice,HMPPS,5/22/2017,5224102050 - EXP - PURCHASE OF GOODS/SERVICES - OTHER - Contracted out operation of prisons,10201280-Parc,BRIDGEND CUSTODIAL SERVICES LTD,BE17026,152458.76,Contracted-out operation of prisons and detention centres
Ministry of Justice,HMPPS,5/22/2017,5224102050 - EXP - PURCHASE OF GOODS/SERVICES - OTHER - Contracted out operation of prisons,10201280-Parc,BRIDGEND CUSTODIAL SERVICES LTD,BE17026,1083526.16,Contracted-out operation of prisons and detention centres
Ministry of Justice,HMPPS,5/22/2017,5224100011 - EXP - PURCHASE OF GOODS/SERVICES - PURCHASE PRICE VARIANCE,10207990-Central Budgets,CORONA ENERGY,0210/0517,3516429.38,Gas utility costs
Ministry of Justice,HMPPS,5/22/2017,5215102051 - EXP - PURCHASE OF GOODS/SERVICES - ACCOMMODATION & BLDNG MANAGEMENT - Ad-Hoc Major Maintenance and New Work - more than 10k,10208080-Estates Contract Management,CARILLION (AMBS) LIMITED,KS19-201703,25162.33,Maintenance work
Ministry of Justice,HMPPS,5/22/2017,5215102051 - EXP - PURCHASE OF GOODS/SERVICES - ACCOMMODATION & BLDNG MANAGEMENT - Ad-Hoc Major Maintenance and New Work - more than 10k,10208080-Estates Contract Management,CARILLION (AMBS) LIMITED,KS5-201703,25970.76,Maintenance work
Ministry of Justice,HMPPS,5/22/2017,5215102047 - EXP - PURCHASE OF GOODS/SERVICES - ACCOMMODATION & BLDNG MANAGEMENT - FM - Buildings related Emergency Action - more than 5k,10208080-Estates Contract Management,CARILLION (AMBS) LIMITED,KS6-201703,26036.17,Maintenance work
Ministry of Justice,HMPPS,5/22/2017,5215102047 - EXP - PURCHASE OF GOODS/SERVICES - ACCOMMODATION & BLDNG MANAGEMENT - FM - Buildings related Emergency Action - more than 5k,10208080-Estates Contract Management,CARILLION (AMBS) LIMITED,KS4-201703,32317.02,Maintenance work
Ministry of Justice,HMPPS,5/22/2017,5215102051 - EXP - PURCHASE OF GOODS/SERVICES - ACCOMMODATION & BLDNG MANAGEMENT - Ad-Hoc Major Maintenance and New Work - more than 10k,10208080-Estates Contract Management,CARILLION (AMBS) LIMITED,KS2-201703,48500.5,Maintenance work
Ministry of Justice,HMPPS,5/22/2017,5215102051 - EXP - PURCHASE OF GOODS/SERVICES - ACCOMMODATION & BLDNG MANAGEMENT - Ad-Hoc Major Maintenance and New Work - more than 10k,10208080-Estates Contract Management,CARILLION (AMBS) LIMITED,KS1-201703,58443.61,Maintenance work
Ministry of Justice,HMPPS,5/22/2017,5224102192 - EXP - PURCHASE OF GOODS/SERVICES - OTHER  - Resettlement,10207320-NOMS CFO Round 3,ADVANCED PERSONNEL MANAGEMENT GROUP UK LIMITED,GBR11578,42024,Training and Further Education Courses
Ministry of Justice,HMPPS,5/22/2017,5224102192 - EXP - PURCHASE OF GOODS/SERVICES - OTHER  - Resettlement,10207320-NOMS CFO Round 3,ADVANCED PERSONNEL MANAGEMENT GROUP UK LIMITED,GBR11574,49122,Training and Further Education Courses
Ministry of Justice,HMPPS,5/22/2017,5224102192 - EXP - PURCHASE OF GOODS/SERVICES - OTHER  - Resettlement,10207320-NOMS CFO Round 3,ADVANCED PERSONNEL MANAGEMENT GROUP UK LIMITED,GBR11589,53679.47,Training and Further Education Courses
Ministry of Justice,HMPPS,5/22/2017,5224102192 - EXP - PURCHASE OF GOODS/SERVICES - OTHER  - Resettlement,10207320-NOMS CFO Round 3,ADVANCED PERSONNEL MANAGEMENT GROUP UK LIMITED,GBR11590,94401.36,Training and Further Education Courses
Ministry of Justice,HMPPS,5/23/2017,1151200000 - PPE - PLANT & MACHINERY (OWNED) - COST - ADDITIONS,10208080-Estates Contract Management,AMEY COMMUNITY LIMITED,90603670,26673.6, Maintenance  Work 
Ministry of Justice,HMPPS,5/23/2017,5215102051 - EXP - PURCHASE OF GOODS/SERVICES - ACCOMMODATION & BLDNG MANAGEMENT - Ad-Hoc Major Maintenance and New Work - more than 10k,10208080-Estates Contract Management,AMEY COMMUNITY LIMITED,90603755,27312, Maintenance  Work 
Ministry of Justice,HMPPS,5/23/2017,1151200000 - PPE - PLANT & MACHINERY (OWNED) - COST - ADDITIONS,10208080-Estates Contract Management,AMEY COMMUNITY LIMITED,90603729,31359.82, Maintenance  Work 
Ministry of Justice,HMPPS,5/23/2017,5215102051 - EXP - PURCHASE OF GOODS/SERVICES - ACCOMMODATION & BLDNG MANAGEMENT - Ad-Hoc Major Maintenance and New Work - more than 10k,10208080-Estates Contract Management,AMEY COMMUNITY LIMITED,90603636,31420.85, Maintenance  Work 
Ministry of Justice,HMPPS,5/23/2017,5215102036 - EXP - PURCHASE OF GOODS/SERVICES - ACCOMMODATION & BLDNG MANAGEMENT - FM - Hard Fixed Costs,10208080-Estates Contract Management,AMEY COMMUNITY LIMITED,90604148,32626.01, Maintenance  Work 
Ministry of Justice,HMPPS,5/23/2017,5215102051 - EXP - PURCHASE OF GOODS/SERVICES - ACCOMMODATION & BLDNG MANAGEMENT - Ad-Hoc Major Maintenance and New Work - more than 10k,10208080-Estates Contract Management,AMEY COMMUNITY LIMITED,90603710,33364.39, Maintenance  Work 
Ministry of Justice,HMPPS,5/23/2017,1151200000 - PPE - PLANT & MACHINERY (OWNED) - COST - ADDITIONS,10208080-Estates Contract Management,AMEY COMMUNITY LIMITED,90603672,34476.71, Maintenance  Work 
Ministry of Justice,HMPPS,5/23/2017,5215102051 - EXP - PURCHASE OF GOODS/SERVICES - ACCOMMODATION & BLDNG MANAGEMENT - Ad-Hoc Major Maintenance and New Work - more than 10k,10208080-Estates Contract Management,AMEY COMMUNITY LIMITED,90603792,35003.9, Maintenance  Work 
Ministry of Justice,HMPPS,5/23/2017,5215102051 - EXP - PURCHASE OF GOODS/SERVICES - ACCOMMODATION & BLDNG MANAGEMENT - Ad-Hoc Major Maintenance and New Work - more than 10k,10208080-Estates Contract Management,AMEY COMMUNITY LIMITED,90603775,35510.96, Maintenance  Work 
Ministry of Justice,HMPPS,5/23/2017,5215102051 - EXP - PURCHASE OF GOODS/SERVICES - ACCOMMODATION & BLDNG MANAGEMENT - Ad-Hoc Major Maintenance and New Work - more than 10k,10208080-Estates Contract Management,AMEY COMMUNITY LIMITED,90603779,36497.4, Maintenance  Work 
Ministry of Justice,HMPPS,5/23/2017,5215102051 - EXP - PURCHASE OF GOODS/SERVICES - ACCOMMODATION & BLDNG MANAGEMENT - Ad-Hoc Major Maintenance and New Work - more than 10k,10208080-Estates Contract Management,AMEY COMMUNITY LIMITED,90603772,37762.84, Maintenance  Work 
Ministry of Justice,HMPPS,5/23/2017,5215102051 - EXP - PURCHASE OF GOODS/SERVICES - ACCOMMODATION & BLDNG MANAGEMENT - Ad-Hoc Major Maintenance and New Work - more than 10k,10208080-Estates Contract Management,AMEY COMMUNITY LIMITED,90603889,50015.53, Maintenance  Work 
Ministry of Justice,HMPPS,5/23/2017,1121200000 - PPE - BUILDINGS (OWNED) - COST - ADDITIONS,10208080-Estates Contract Management,AMEY COMMUNITY LIMITED,90603805,52549.7, Maintenance  Work 
Ministry of Justice,HMPPS,5/23/2017,5215102051 - EXP - PURCHASE OF GOODS/SERVICES - ACCOMMODATION & BLDNG MANAGEMENT - Ad-Hoc Major Maintenance and New Work - more than 10k,10208080-Estates Contract Management,AMEY COMMUNITY LIMITED,90603764,54000, Maintenance  Work 
Ministry of Justice,HMPPS,5/23/2017,5215102051 - EXP - PURCHASE OF GOODS/SERVICES - ACCOMMODATION & BLDNG MANAGEMENT - Ad-Hoc Major Maintenance and New Work - more than 10k,10208080-Estates Contract Management,AMEY COMMUNITY LIMITED,90603747,54805.74, Maintenance  Work 
Ministry of Justice,HMPPS,5/23/2017,5215102051 - EXP - PURCHASE OF GOODS/SERVICES - ACCOMMODATION & BLDNG MANAGEMENT - Ad-Hoc Major Maintenance and New Work - more than 10k,10208080-Estates Contract Management,AMEY COMMUNITY LIMITED,90604009,62326.8, Maintenance  Work 
Ministry of Justice,HMPPS,5/23/2017,5215102051 - EXP - PURCHASE OF GOODS/SERVICES - ACCOMMODATION & BLDNG MANAGEMENT - Ad-Hoc Major Maintenance and New Work - more than 10k,10208080-Estates Contract Management,AMEY COMMUNITY LIMITED,90603774,63564, Maintenance  Work 
Ministry of Justice,HMPPS,5/23/2017,5215102051 - EXP - PURCHASE OF GOODS/SERVICES - ACCOMMODATION & BLDNG MANAGEMENT - Ad-Hoc Major Maintenance and New Work - more than 10k,10208080-Estates Contract Management,AMEY COMMUNITY LIMITED,90603720,64563.73, Maintenance  Work 
Ministry of Justice,HMPPS,5/23/2017,5215102051 - EXP - PURCHASE OF GOODS/SERVICES - ACCOMMODATION & BLDNG MANAGEMENT - Ad-Hoc Major Maintenance and New Work - more than 10k,10208080-Estates Contract Management,AMEY COMMUNITY LIMITED,90603758,76971.1, Maintenance  Work 
Ministry of Justice,HMPPS,5/23/2017,5215102051 - EXP - PURCHASE OF GOODS/SERVICES - ACCOMMODATION & BLDNG MANAGEMENT - Ad-Hoc Major Maintenance and New Work - more than 10k,10208080-Estates Contract Management,AMEY COMMUNITY LIMITED,90603820,80967.07, Maintenance  Work 
Ministry of Justice,HMPPS,5/23/2017,1151200000 - PPE - PLANT & MACHINERY (OWNED) - COST - ADDITIONS,10208080-Estates Contract Management,AMEY COMMUNITY LIMITED,90603683,98114.74, Maintenance  Work 
Ministry of Justice,HMPPS,5/23/2017,1151200000 - PPE - PLANT & MACHINERY (OWNED) - COST - ADDITIONS,10208080-Estates Contract Management,AMEY COMMUNITY LIMITED,90603718,104205.71, Maintenance  Work 
Ministry of Justice,HMPPS,5/23/2017,1151200000 - PPE - PLANT & MACHINERY (OWNED) - COST - ADDITIONS,10208080-Estates Contract Management,AMEY COMMUNITY LIMITED,90603997,109947.6, Maintenance  Work 
Ministry of Justice,HMPPS,5/23/2017,5215102051 - EXP - PURCHASE OF GOODS/SERVICES - ACCOMMODATION & BLDNG MANAGEMENT - Ad-Hoc Major Maintenance and New Work - more than 10k,10208080-Estates Contract Management,AMEY COMMUNITY LIMITED,90603743,134027.27, Maintenance  Work 
Ministry of Justice,HMPPS,5/23/2017,5215102051 - EXP - PURCHASE OF GOODS/SERVICES - ACCOMMODATION & BLDNG MANAGEMENT - Ad-Hoc Major Maintenance and New Work - more than 10k,10208080-Estates Contract Management,AMEY COMMUNITY LIMITED,90603978,171682.52, Maintenance  Work 
Ministry of Justice,HMPPS,5/23/2017,5211102009 - EXP - PURCHASE OF GOODS/SERVICES - OTHER - Contracted-out Other,10207030-HS Directorate Prisons Central,AIRWAVE SOLUTIONS LTD,0900000056-051,176210.83,Contracted-out IT  Services
Ministry of Justice,HMPPS,5/23/2017,5215102051 - EXP - PURCHASE OF GOODS/SERVICES - ACCOMMODATION & BLDNG MANAGEMENT - Ad-Hoc Major Maintenance and New Work - more than 10k,10208080-Estates Contract Management,CARILLION (AMBS) LIMITED,GL16-201703,25242.16,Maintenance work
Ministry of Justice,HMPPS,5/23/2017,5215102051 - EXP - PURCHASE OF GOODS/SERVICES - ACCOMMODATION & BLDNG MANAGEMENT - Ad-Hoc Major Maintenance and New Work - more than 10k,10208080-Estates Contract Management,CARILLION (AMBS) LIMITED,GL17-201703,25413.34,Maintenance work
Ministry of Justice,HMPPS,5/23/2017,5215102038 - EXP - PURCHASE OF GOODS/SERVICES - ACCOMMODATION & BLDNG MANAGEMENT - FM - Soft Fixed Costs,10208080-Estates Contract Management,CARILLION (AMBS) LIMITED,WPG-201705-A,27900,Maintenance work
Ministry of Justice,HMPPS,5/23/2017,5215102038 - EXP - PURCHASE OF GOODS/SERVICES - ACCOMMODATION & BLDNG MANAGEMENT - FM - Soft Fixed Costs,10208080-Estates Contract Management,CARILLION (AMBS) LIMITED,WPH-201705-A,27900,Maintenance work
Ministry of Justice,HMPPS,5/23/2017,5215102038 - EXP - PURCHASE OF GOODS/SERVICES - ACCOMMODATION & BLDNG MANAGEMENT - FM - Soft Fixed Costs,10208080-Estates Contract Management,CARILLION (AMBS) LIMITED,WPG-201704-A,27900,Maintenance work
Ministry of Justice,HMPPS,5/23/2017,5215102038 - EXP - PURCHASE OF GOODS/SERVICES - ACCOMMODATION & BLDNG MANAGEMENT - FM - Soft Fixed Costs,10208080-Estates Contract Management,CARILLION (AMBS) LIMITED,WPH-201704-A,27900,Maintenance work
Ministry of Justice,HMPPS,5/23/2017,5215102051 - EXP - PURCHASE OF GOODS/SERVICES - ACCOMMODATION & BLDNG MANAGEMENT - Ad-Hoc Major Maintenance and New Work - more than 10k,10208080-Estates Contract Management,CARILLION (AMBS) LIMITED,GL7-201703,36738.08,Maintenance work
Ministry of Justice,HMPPS,5/23/2017,1151200000 - PPE - PLANT & MACHINERY (OWNED) - COST - ADDITIONS,10208080-Estates Contract Management,CARILLION (AMBS) LIMITED,GL21-201703,39753.74,Maintenance work
Ministry of Justice,HMPPS,5/23/2017,5215102051 - EXP - PURCHASE OF GOODS/SERVICES - ACCOMMODATION & BLDNG MANAGEMENT - Ad-Hoc Major Maintenance and New Work - more than 10k,10208080-Estates Contract Management,CARILLION (AMBS) LIMITED,KS8-201703,40373.6,Maintenance work
Ministry of Justice,HMPPS,5/23/2017,1151200000 - PPE - PLANT & MACHINERY (OWNED) - COST - ADDITIONS,10208080-Estates Contract Management,CARILLION (AMBS) LIMITED,GL27-201703,44865.89,Maintenance work
Ministry of Justice,HMPPS,5/23/2017,1151200000 - PPE - PLANT & MACHINERY (OWNED) - COST - ADDITIONS,10208080-Estates Contract Management,CARILLION (AMBS) LIMITED,GL22-201703,55608.46,Maintenance work
Ministry of Justice,HMPPS,5/23/2017,5215102051 - EXP - PURCHASE OF GOODS/SERVICES - ACCOMMODATION & BLDNG MANAGEMENT - Ad-Hoc Major Maintenance and New Work - more than 10k,10208080-Estates Contract Management,CARILLION (AMBS) LIMITED,GL25-201703,59015.09,Maintenance work
Ministry of Justice,HMPPS,5/23/2017,1121200000 - PPE - BUILDINGS (OWNED) - COST - ADDITIONS,10208080-Estates Contract Management,CARILLION (AMBS) LIMITED,GL4-201703,88943.89,Maintenance work
Ministry of Justice,HMPPS,5/23/2017,5215102051 - EXP - PURCHASE OF GOODS/SERVICES - ACCOMMODATION & BLDNG MANAGEMENT - Ad-Hoc Major Maintenance and New Work - more than 10k,10208080-Estates Contract Management,CARILLION (AMBS) LIMITED,KS15-201703,179671.02,Maintenance work
Ministry of Justice,HMPPS,5/23/2017,5215102051 - EXP - PURCHASE OF GOODS/SERVICES - ACCOMMODATION & BLDNG MANAGEMENT - Ad-Hoc Major Maintenance and New Work - more than 10k,10208080-Estates Contract Management,CARILLION (AMBS) LIMITED,KS16-201703,181115.51,Maintenance work
Ministry of Justice,HMPPS,5/23/2017,5215102051 - EXP - PURCHASE OF GOODS/SERVICES - ACCOMMODATION & BLDNG MANAGEMENT - Ad-Hoc Major Maintenance and New Work - more than 10k,10208080-Estates Contract Management,CARILLION (AMBS) LIMITED,KS9-201703,315269.7,Maintenance work
Ministry of Justice,HMPPS,5/23/2017,5215102036 - EXP - PURCHASE OF GOODS/SERVICES - ACCOMMODATION & BLDNG MANAGEMENT - FM - Hard Fixed Costs,10208080-Estates Contract Management,CARILLION (AMBS) LIMITED,WPH-201704-A,409014,Maintenance work
Ministry of Justice,HMPPS,5/23/2017,5215102036 - EXP - PURCHASE OF GOODS/SERVICES - ACCOMMODATION & BLDNG MANAGEMENT - FM - Hard Fixed Costs,10208080-Estates Contract Management,CARILLION (AMBS) LIMITED,WPH-201705-A,409014,Maintenance work
Ministry of Justice,HMPPS,5/23/2017,5215102036 - EXP - PURCHASE OF GOODS/SERVICES - ACCOMMODATION & BLDNG MANAGEMENT - FM - Hard Fixed Costs,10208080-Estates Contract Management,CARILLION (AMBS) LIMITED,WPG-201705-A,409014,Maintenance work
Ministry of Justice,HMPPS,5/23/2017,5215102036 - EXP - PURCHASE OF GOODS/SERVICES - ACCOMMODATION & BLDNG MANAGEMENT - FM - Hard Fixed Costs,10208080-Estates Contract Management,CARILLION (AMBS) LIMITED,WPG-201704-A,409014,Maintenance work
Ministry of Justice,HMPPS,5/23/2017,5215102058 - EXP - PURCHASE OF GOODS/SERVICES - ACCOMMODATION & BLDNG MANAGEMENT - FM - Soft Variable - OVER 5k - NON VAT Recoverable,10208080-Estates Contract Management,CARILLION (AMBS) LIMITED,WPG&H-201705-B,600000,Maintenance work
Ministry of Justice,HMPPS,5/23/2017,5215102058 - EXP - PURCHASE OF GOODS/SERVICES - ACCOMMODATION & BLDNG MANAGEMENT - FM - Soft Variable - OVER 5k - NON VAT Recoverable,10208080-Estates Contract Management,CARILLION (AMBS) LIMITED,WPG&H-201705-B,600000,Maintenance work
Ministry of Justice,HMPPS,5/23/2017,5224102192 - EXP - PURCHASE OF GOODS/SERVICES - OTHER  - Resettlement,10207320-NOMS CFO Round 3,ADVANCED PERSONNEL MANAGEMENT GROUP UK LIMITED,GBR11588,88882.42,Training and Further Education Courses
Ministry of Justice,HMPPS,5/23/2017,5223102001 - EXP - PURCHASE OF GOODS/SERVICES - VEHICLE MAINTENANCE - Vehicle Repair and Maintenance Services,10201150-Wymott,BRIGGS EQUIPMENT UK LTD,708021388,44220,Vehicle Repair and Maintenance Services
Ministry of Justice,HMPPS,5/24/2017,5215102051 - EXP - PURCHASE OF GOODS/SERVICES - ACCOMMODATION & BLDNG MANAGEMENT - Ad-Hoc Major Maintenance and New Work - more than 10k,10208080-Estates Contract Management,AMEY COMMUNITY LIMITED,90603641,28994.72, Maintenance  Work 
Ministry of Justice,HMPPS,5/24/2017,5215102045 - EXP - PURCHASE OF GOODS/SERVICES - ACCOMMODATION & BLDNG MANAGEMENT - FM - Ad-Hoc Non Structural Maintenance - between 5k and 10k,10208080-Estates Contract Management,AMEY COMMUNITY LIMITED,90604173,30968.69, Maintenance  Work 
Ministry of Justice,HMPPS,5/24/2017,1151200000 - PPE - PLANT & MACHINERY (OWNED) - COST - ADDITIONS,10208080-Estates Contract Management,AMEY COMMUNITY LIMITED,90603660,31964.8, Maintenance  Work 
Ministry of Justice,HMPPS,5/24/2017,5215102041 - EXP - PURCHASE OF GOODS/SERVICES - ACCOMMODATION & BLDNG MANAGEMENT - FM - Soft Variable Costs - 750 to 5k,10208080-Estates Contract Management,AMEY COMMUNITY LIMITED,90604173,32158.1, Maintenance  Work 
Ministry of Justice,HMPPS,5/24/2017,5215102051 - EXP - PURCHASE OF GOODS/SERVICES - ACCOMMODATION & BLDNG MANAGEMENT - Ad-Hoc Major Maintenance and New Work - more than 10k,10208080-Estates Contract Management,AMEY COMMUNITY LIMITED,90603570,33387.06, Maintenance  Work 
Ministry of Justice,HMPPS,5/24/2017,5215102051 - EXP - PURCHASE OF GOODS/SERVICES - ACCOMMODATION & BLDNG MANAGEMENT - Ad-Hoc Major Maintenance and New Work - more than 10k,10208080-Estates Contract Management,AMEY COMMUNITY LIMITED,90603649,34730.45, Maintenance  Work 
Ministry of Justice,HMPPS,5/24/2017,1151200000 - PPE - PLANT & MACHINERY (OWNED) - COST - ADDITIONS,10208080-Estates Contract Management,AMEY COMMUNITY LIMITED,90603657,34808.72, Maintenance  Work 
Ministry of Justice,HMPPS,5/24/2017,5215102051 - EXP - PURCHASE OF GOODS/SERVICES - ACCOMMODATION & BLDNG MANAGEMENT - Ad-Hoc Major Maintenance and New Work - more than 10k,10208080-Estates Contract Management,AMEY COMMUNITY LIMITED,90604124,35134.68, Maintenance  Work 
Ministry of Justice,HMPPS,5/24/2017,1151200000 - PPE - PLANT & MACHINERY (OWNED) - COST - ADDITIONS,10208080-Estates Contract Management,AMEY COMMUNITY LIMITED,90603573,38242.37, Maintenance  Work 
Ministry of Justice,HMPPS,5/24/2017,5215102051 - EXP - PURCHASE OF GOODS/SERVICES - ACCOMMODATION & BLDNG MANAGEMENT - Ad-Hoc Major Maintenance and New Work - more than 10k,10208080-Estates Contract Management,AMEY COMMUNITY LIMITED,90603728,40965.59, Maintenance  Work 
Ministry of Justice,HMPPS,5/24/2017,5215102047 - EXP - PURCHASE OF GOODS/SERVICES - ACCOMMODATION & BLDNG MANAGEMENT - FM - Buildings related Emergency Action - more than 5k,10208080-Estates Contract Management,AMEY COMMUNITY LIMITED,90603843,50647.48, Maintenance  Work 
Ministry of Justice,HMPPS,5/24/2017,1151200000 - PPE - PLANT & MACHINERY (OWNED) - COST - ADDITIONS,10208080-Estates Contract Management,AMEY COMMUNITY LIMITED,90603569,54134.75, Maintenance  Work 
Ministry of Justice,HMPPS,5/24/2017,5215102051 - EXP - PURCHASE OF GOODS/SERVICES - ACCOMMODATION & BLDNG MANAGEMENT - Ad-Hoc Major Maintenance and New Work - more than 10k,10208080-Estates Contract Management,AMEY COMMUNITY LIMITED,90603736,74468.23, Maintenance  Work 
Ministry of Justice,HMPPS,5/24/2017,5215102050 - EXP - PURCHASE OF GOODS/SERVICES - ACCOMMODATION & BLDNG MANAGEMENT - Hard Variable OVER 5k � NON VAT Recoverable ,10208080-Estates Contract Management,AMEY COMMUNITY LIMITED,90604176,97154.72, Maintenance  Work 
Ministry of Justice,HMPPS,5/24/2017,5215102050 - EXP - PURCHASE OF GOODS/SERVICES - ACCOMMODATION & BLDNG MANAGEMENT - Hard Variable OVER 5k � NON VAT Recoverable ,10208080-Estates Contract Management,AMEY COMMUNITY LIMITED,90604173,129293.11, Maintenance  Work 
Ministry of Justice,HMPPS,5/24/2017,5215102000 - EXP - PURCHASE OF GOODS/SERVICES - ACCOMMODATION & BLDNG MANAGEMENT - Management fee,10208080-Estates Contract Management,AMEY COMMUNITY LIMITED,90604177,148110.32, Maintenance  Work 
Ministry of Justice,HMPPS,5/24/2017,5215102000 - EXP - PURCHASE OF GOODS/SERVICES - ACCOMMODATION & BLDNG MANAGEMENT - Management fee,10208080-Estates Contract Management,AMEY COMMUNITY LIMITED,90604177,172837.61, Maintenance  Work 
Ministry of Justice,HMPPS,5/24/2017,5215102040 - EXP - PURCHASE OF GOODS/SERVICES - ACCOMMODATION & BLDNG MANAGEMENT - FM - Hard Variable Costs - 750 to 5k,10208080-Estates Contract Management,AMEY COMMUNITY LIMITED,90604176,278879.42, Maintenance  Work 
Ministry of Justice,HMPPS,5/24/2017,5215102040 - EXP - PURCHASE OF GOODS/SERVICES - ACCOMMODATION & BLDNG MANAGEMENT - FM - Hard Variable Costs - 750 to 5k,10208080-Estates Contract Management,AMEY COMMUNITY LIMITED,90604173,383585.47, Maintenance  Work 
Ministry of Justice,HMPPS,5/24/2017,5215102038 - EXP - PURCHASE OF GOODS/SERVICES - ACCOMMODATION & BLDNG MANAGEMENT - FM - Soft Fixed Costs,10208080-Estates Contract Management,AMEY COMMUNITY LIMITED,90604176,400864.49, Maintenance  Work 
Ministry of Justice,HMPPS,5/24/2017,5215102038 - EXP - PURCHASE OF GOODS/SERVICES - ACCOMMODATION & BLDNG MANAGEMENT - FM - Soft Fixed Costs,10208080-Estates Contract Management,AMEY COMMUNITY LIMITED,90604173,566800.6, Maintenance  Work 
Ministry of Justice,HMPPS,5/24/2017,5215102036 - EXP - PURCHASE OF GOODS/SERVICES - ACCOMMODATION & BLDNG MANAGEMENT - FM - Hard Fixed Costs,10208080-Estates Contract Management,AMEY COMMUNITY LIMITED,90604176,1180180.82, Maintenance  Work 
Ministry of Justice,HMPPS,5/24/2017,5215102036 - EXP - PURCHASE OF GOODS/SERVICES - ACCOMMODATION & BLDNG MANAGEMENT - FM - Hard Fixed Costs,10208080-Estates Contract Management,AMEY COMMUNITY LIMITED,90604173,1613975.43, Maintenance  Work 
Ministry of Justice,HMPPS,5/24/2017,5211402045 - EXP - PURCHASE OF GOODS/SERVICES - OTHER PROFESSIONAL SERVICES - other than legal,10200010-Askham Grange,BARNARDO'S,141004732,30568,Professional Advice
Ministry of Justice,HMPPS,5/24/2017,5224100011 - EXP - PURCHASE OF GOODS/SERVICES - PURCHASE PRICE VARIANCE,10207990-Central Budgets,CAPITA BUSINESS SERVICES LTD,L010197528,107448.95,Specialist contractors engaged under a fixed-term contract for services 
Ministry of Justice,HMPPS,5/29/2017,5224102050 - EXP - PURCHASE OF GOODS/SERVICES - OTHER - Contracted out operation of prisons,10201250-Forest Bank,AGECROFT PRISON MANAGEMENT LTD,9051108370A,157904.64,Contracted-out operation of prisons and detention centres
Ministry of Justice,HMPPS,5/30/2017,5215102051 - EXP - PURCHASE OF GOODS/SERVICES - ACCOMMODATION & BLDNG MANAGEMENT - Ad-Hoc Major Maintenance and New Work - more than 10k,10208080-Estates Contract Management,AMEY COMMUNITY LIMITED,90603837,33259.44, Maintenance  Work 
Ministry of Justice,HMPPS,5/30/2017,1151200000 - PPE - PLANT & MACHINERY (OWNED) - COST - ADDITIONS,10208080-Estates Contract Management,AMEY COMMUNITY LIMITED,90603830,81109.36, Maintenance  Work 
Ministry of Justice,HMPPS,5/30/2017,5224102025 - EXP - PURCHASE OF GOODS/SERVICES - OTHER - Prison Shop Cost of Sales,10207060-Retail Project Charges,DHL SUPPLY CHAIN LTD,11175715,256613.66,Prison shop run through a national contract at no cost to taxpayer�
Ministry of Justice,HMPPS,5/30/2017,5224102025 - EXP - PURCHASE OF GOODS/SERVICES - OTHER - Prison Shop Cost of Sales,10207060-Retail Project Charges,DHL SUPPLY CHAIN LTD,11175715,573902.32,Prison shop run through a national contract at no cost to taxpayer�
Ministry of Justice,HMPPS,5/30/2017,5224100011 - EXP - PURCHASE OF GOODS/SERVICES - PURCHASE PRICE VARIANCE,10207990-Central Budgets,CAPITA BUSINESS SERVICES LTD,LO10194727,105051.18,Specialist contractors engaged under a fixed-term contract for services 
Ministry of Justice,HMPPS,5/31/2017,5218202002 - EXP - PURCHASE OF GOODS/SERVICES - TELECOMS - Maintenance - non-mobile,10207560-Electronic Monitoring,CAPITA BUSINESS SERVICES LTD,6003557178A,4030453.55,Specialist contractors engaged under a fixed-term contract for services 
